bitfinex-derivatives/quotes_ETHF0:USTF0_20250405
["timestamp","ask_amount","ask_price","bid_price","bid_amount"]
[1743885942216,47.10942,1790.0,1789.9,36.08089048]
[1743885942417,53.22704586,1790.0,1789.9,0.01707656]
[1743885942619,53.22704586,1790.0,1789.0,1.9409]
[1743885942620,52.44462586,1790.0,1789.0,1.9409]
[1743885942919,0.78276,1789.2,1789.1,5.78468818]
[1743885943117,8.604,1789.2,1789.1,5.78468818]
[1743885943516,3.2078,1789.6,1789.1,8.28468818]
[1743885943713,8.583364,1789.7,1789.5,3.2078]
[1743885944016,8.583364,1789.7,1789.6,1.9651]
[1743885944315,8.571,1789.8,1789.6,10.24978818]
[1743885944519,8.571,1789.8,1789.7,10.95758818]
[1743885944720,8.571,1789.8,1789.7,5.1729]
[1743885945019,8.571,1789.8,1789.7,13.45758818]
[1743885945519,9.3535,1789.8,1789.7,7.74978818]
[1743885945717,8.571,1789.8,1789.7,7.74978818]
[1743885946522,8.571,1789.8,1789.7,10.95758818]
[1743885946814,0.008364,1789.9,1789.7,7.74978818]
[1743885947020,0.008364,1789.9,1789.8,5.78468818]
[1743885947217,0.790824,1789.9,1789.8,5.78468818]
[1743885947623,0.7825,1789.8,1789.7,1.9651]
[1743885947922,0.7825,1789.8,1789.7,7.74978818]
[1743885948115,0.008364,1789.9,1789.7,7.74978818]
[1743885948314,0.008364,1789.9,1789.8,5.78468818]
[1743885948616,0.008364,1789.9,1789.8,8.99248818]
[1743885948915,0.008364,1789.9,1789.8,5.78468818]
[1743885949417,0.008364,1789.9,1789.8,8.99248818]
[1743885949626,0.790824,1789.9,1789.8,8.99248818]
[1743885950128,0.790824,1789.9,1789.8,5.78468818]
[1743885950422,0.008364,1789.9,1789.6,0.008364]
[1743885950626,0.78255,1789.7,1789.6,0.008364]
[1743885951121,0.78253,1789.8,1789.6,0.008364]
[1743885951321,0.008364,1789.9,1789.6,0.008364]
[1743885951526,0.78252,1789.8,1789.6,3.216164]
[1743885952216,0.790854,1789.9,1789.6,3.216164]
[1743885952517,0.790854,1789.9,1789.4,0.78265]
[1743885952713,0.78251,1789.8,1789.4,0.78265]
[1743885952918,0.7825,1789.8,1789.3,3.2078]
[1743885953117,0.7825,1789.8,1789.4,0.78267]
[1743885953314,0.7825,1789.8,1789.3,3.2078]
[1743885953517,0.78256,1789.7,1789.3,3.9905]
[1743885953817,3.2078,1789.8,1789.3,3.9905]
[1743885953818,0.78261,1789.6,1789.4,2.6019]
[1743885954023,0.78255,1789.7,1789.4,2.6019]
[1743885954223,0.78256,1789.7,1789.4,2.6019]
[1743885955325,0.78259,1789.6,1789.4,2.6019]
[1743885955728,3.2078,1789.8,1789.4,2.6019]
[1743885955927,0.78261,1789.6,1789.4,2.6019]
[1743885956121,3.2078,1789.8,1789.4,2.6019]
[1743885956324,0.78259,1789.6,1789.4,2.6019]
[1743885956623,0.78258,1789.7,1789.4,2.6019]
[1743885956826,3.2078,1789.8,1789.4,2.6019]
[1743885957022,3.9903,1789.8,1789.4,2.6019]
[1743885957221,3.2078,1789.8,1789.4,2.6019]
[1743885957421,0.7826,1789.6,1789.4,2.6019]
[1743885958020,3.2078,1789.8,1789.4,2.6019]
[1743885958227,0.78263,1789.5,1789.4,2.6019]
[1743885958426,8.059,1789.5,1788.9,0.78288]
[1743885958626,8.059,1789.5,1789.1,2.6669]
[1743885958627,3.2078,1789.3,1789.1,2.6669]
[1743885958826,0.78276,1789.2,1789.1,2.6669]
[1743885959323,0.78296,1788.8,1788.4,3.2078]
[1743885959623,0.78298,1788.7,1788.6,2.5916]
[1743885960322,0.008364,1788.8,1788.6,2.5916]
[1743885960523,0.008364,1788.8,1787.4,7.995]
[1743885960524,1.95758,1788.6,1787.6,3.2078]
[1743885960725,3.2078,1788.4,1787.8,3.37496]
[1743885961021,8.032,1788.5,1787.8,5.7994]
[1743885961226,0.008364,1788.8,1788.0,3.2078]
[1743885961430,3.99081,1788.7,1788.2,3.2078]
[1743885961627,0.008364,1788.8,1788.7,0.78298]
[1743885961836,3.2078,1789.3,1788.6,3.99081]
[1743885962024,3.2078,1789.3,1788.9,3.2078]
[1743885962220,3.2078,1789.3,1789.0,2.7236]
[1743885962728,0.78281,1789.1,1789.0,2.7236]
[1743885962927,0.78304,1788.6,1788.3,2.5468]
[1743885963132,0.78304,1788.6,1788.5,2.7236]
[1743885963437,0.78312,1788.4,1788.3,0.00838809]
[1743885963728,3.99092,1788.4,1788.3,0.00838809]
[1743885963931,6.49092,1788.4,1788.3,0.00838809]
[1743885964331,3.99092,1788.4,1788.3,0.00838809]
[1743885964630,3.2078,1788.7,1788.3,2.50838809]
[1743885964824,3.2078,1788.7,1788.4,2.7236]
[1743885965031,7.981,1789.1,1788.6,0.78299]
[1743885965231,7.981,1789.1,1788.7,2.6314]
[1743885965430,7.981,1789.1,1788.7,9.33235]
[1743885965730,0.00838809,1789.3,1788.7,8.5494]
[1743885965926,0.78288,1789.0,1788.7,8.5494]
[1743885966132,0.78294,1788.8,1788.7,2.6314]
[1743885966537,0.78292,1788.9,1788.7,2.6314]
[1743885966827,0.78294,1788.8,1788.7,2.6314]
[1743885967029,0.78307,1788.5,1788.3,0.00838809]
[1743885967235,11.90487,1788.5,1788.4,2.6314]
[1743885967738,0.78312,1788.4,1788.3,0.00838809]
[1743885968436,3.28312,1788.4,1788.3,0.00838809]
[1743885968735,6.07822,1788.4,1788.3,0.00838809]
[1743885969130,3.57822,1788.4,1788.3,0.00838809]
[1743885969338,6.07822,1788.4,1788.3,0.00838809]
[1743885970538,0.78312,1788.4,1788.3,0.00838809]
[1743885971334,11.1218,1788.5,1788.3,0.00838809]
[1743885971530,7.786,1788.4,1788.3,0.00838809]
[1743885971833,3.2078,1788.7,1788.3,2.5]
[1743885972040,0.78287,1789.0,1788.5,3.2078]
[1743885972335,3.99067,1789.0,1788.6,2.6561]
[1743885972540,7.49876021,1789.2,1788.6,2.6561]
[1743885973236,3.2078,1789.1,1788.6,5.8639]
[1743885973435,3.99063,1789.1,1788.7,3.43907]
[1743885973836,3.99063,1789.1,1788.7,3.42995378]
[1743885974035,3.2078,1788.8,1788.4,3.2078]
[1743885974240,3.2078,1788.8,1788.2,2.591]
[1743885974241,10.9538,1788.8,1788.2,2.591]
[1743885974443,0.78314,1788.4,1788.2,2.591]
[1743885975240,0.7831,1788.5,1788.2,2.591]
[1743885975437,10.9538,1788.8,1788.2,2.591]
[1743885975739,0.783,1788.7,1788.3,0.78314]
[1743885976036,6.43644032,1789.7,1788.6,3.2078]
[1743885976242,6.43644032,1789.7,1789.1,3.99059]
[1743885976541,6.43644032,1789.7,1789.2,0.78276]
[1743885976741,6.43644032,1789.7,1789.1,6.49058]
[1743885976943,6.43644032,1789.7,1789.2,2.6224]
[1743885977335,8.28138021,1789.6,1789.2,3.40516]
[1743885977540,8.28138021,1789.6,1789.2,5.90516]
[1743885977741,4.29096021,1789.6,1789.2,11.0404]
[1743885977939,6.43644032,1789.7,1789.4,3.2078]
[1743885978135,6.43644032,1789.7,1789.5,3.41902]
[1743885978443,6.43644032,1789.7,1789.6,9.90839]
[1743885978444,1e-08,1789.7,1789.6,9.90839]
[1743885978938,12.99960341,1790.1,1790.0,0.78242]
[1743885979143,8.6379804,1790.2,1790.1,0.78237]
[1743885979347,8.6379804,1790.2,1790.1,2.5]
[1743885979638,12.99960341,1790.5,1790.4,0.78224]
[1743885979639,5.50780341,1790.5,1790.4,0.78224]
[1743885979946,4.21134341,1790.5,1790.4,9.88745825]
[1743885980139,7.22017548,1790.6,1790.5,0.7822]
[1743885980336,4.95524548,1790.6,1790.5,9.2002]
[1743885980531,3.77805548,1790.6,1790.5,9.2002]
[1743885980844,20.94894223,1790.6,1790.0,5.918]
[1743885981033,14.58442,1790.5,1790.0,6.70039]
[1743885981234,19.80028675,1790.5,1790.0,5.918]
[1743885981433,3.99004,1790.4,1790.0,9.90819]
[1743885981634,2.6294,1790.4,1790.0,9.10516158]
[1743885981842,3.77805548,1790.6,1790.1,3.2078]
[1743885982044,11.95502,1790.5,1790.1,3.99014]
[1743885982237,14.58441,1790.5,1790.1,3.99014]
[1743885982540,9.40970675,1790.5,1790.1,3.2078]
[1743885982738,11.1728,1790.4,1790.0,5.89736158]
[1743885983038,2.6294,1790.3,1790.0,5.87672316]
[1743885983241,0.79055809,1790.6,1790.1,0.78234]
[1743885983538,13.78156158,1790.5,1790.3,0.78226]
[1743885983742,0.00838809,1790.6,1790.3,3.2078]
[1743885984237,0.00838809,1790.6,1790.5,0.7822]
[1743885984432,0.00838809,1790.6,1790.5,3.99]
[1743885984635,8.09e-06,1790.6,1790.5,12.36672316]
[1743885984839,8.09e-06,1790.6,1790.5,9.88862316]
[1743885985235,8.09e-06,1790.6,1790.5,6.65892316]
[1743885986342,3.2078,1791.8,1790.6,7.83202316]
[1743885986539,5.9177,1791.6,1791.1,3.2078]
[1743885986742,0.78183,1791.4,1791.0,0.78197]
[1743885986942,2.6108,1791.3,1791.0,0.78197]
[1743885987143,13.7836,1791.3,1791.0,0.78197]
[1743885987337,19.79007484,1791.3,1791.0,0.00838809]
[1743885987537,19.79007484,1791.3,1791.2,0.78189]
[1743885988046,0.00838809,1791.3,1791.1,9.86643316]
[1743885988238,15.16252,1791.2,1791.0,0.00838809]
[1743885988433,2.6108,1791.1,1791.0,0.00838809]
[1743885988632,13.7836,1791.1,1791.0,0.00838809]
[1743885988860,23.06361675,1791.1,1791.0,0.00838809]
[1743885989643,0.78215,1790.7,1789.9,3.2078]
[1743885989848,11.50492,1790.7,1790.1,3.2078]
[1743885990041,13.9894,1790.6,1790.3,0.78228]
[1743885990239,13.9894,1790.6,1790.1,3.2078]
[1743885990446,2.8166,1790.6,1790.2,5.918]
[1743885990744,2.8166,1790.6,1790.5,0.7822]
[1743885990943,2.8351,1791.0,1790.8,0.78205]
[1743885991246,13.9894,1790.9,1790.6,0.78213]
[1743885991639,13.9894,1790.9,1790.5,5.918]
[1743885991640,3.2078,1790.7,1790.5,5.918]
[1743885991840,2.8166,1790.6,1790.5,5.918]
[1743885992139,11.1728,1790.6,1790.3,3.2078]
[1743885992340,13.9894,1790.6,1790.4,0.78224]
[1743885993136,11.1728,1790.5,1790.3,3.99007]
[1743885993345,2.6778,1790.4,1790.3,3.2078]
[1743885994446,14.63284,1790.4,1790.2,0.00838809]
[1743885994746,11.1728,1790.3,1790.2,0.00838809]
[1743885994949,13.8506,1790.3,1790.2,0.00838809]
[1743885995244,0.78233,1790.2,1790.1,3.2078]
[1743885995440,11.1728,1790.2,1790.1,3.18716158]
[1743885996048,11.95513,1790.2,1790.1,3.18716158]
[1743885996246,11.379,1790.5,1790.1,3.96949158]
[1743885996449,0.00838809,1790.3,1790.1,3.18716158]
[1743885996750,0.00838809,1790.3,1790.2,0.76169158]
[1743885996943,0.78217,1790.6,1790.3,0.01225033]
[1743885997151,11.15216158,1790.5,1790.3,0.01225033]
[1743885997343,11.15216158,1790.5,1790.2,0.76169158]
[1743885997544,11.13991125,1790.5,1790.1,9.10516158]
[1743885997850,11.13991125,1790.5,1790.3,0.78226]
[1743885998044,5.4259,1791.0,1790.4,3.2078]
[1743885998250,0.00838809,1790.6,1790.1,9.1548]
[1743885998451,0.78222,1790.5,1790.2,0.78232]
[1743885998651,11.92213125,1790.5,1790.2,0.78232]
[1743885998945,13.96551125,1790.4,1790.2,0.78232]
[1743885999141,11.13991125,1790.4,1790.3,0.78228]
[1743885999345,0.79056809,1790.6,1790.3,0.78228]
[1743885999546,13.96551125,1790.5,1790.1,9.1258]
[1743885999748,13.96551125,1790.5,1790.3,0.78225]
[1743885999950,13.96551125,1790.5,1790.3,3.99005]
[1743886000253,13.96551125,1790.5,1790.4,0.78224]
[1743886000760,13.96551125,1790.5,1790.3,3.99007]
[1743886001052,11.13991125,1790.4,1790.2,0.7823]
[1743886001353,2.8256,1790.5,1790.4,0.78224]
[1743886001655,8.09e-06,1790.6,1790.5,0.7822]
[1743886001954,8.09e-06,1790.6,1790.5,9.908]
[1743886002245,8.09e-06,1790.6,1790.5,12.4371]
[1743886002852,8.09e-06,1790.6,1790.5,12.408]
[1743886004646,8.09e-06,1790.6,1790.5,9.908]
[1743886005247,8.09e-06,1790.6,1790.5,3.99]
[1743886005644,8.09e-06,1790.6,1790.4,5.918]
[1743886005645,11.13991934,1790.6,1790.4,5.918]
[1743886005957,13.77401125,1790.5,1790.4,0.78224]
[1743886007051,2.6341,1790.5,1790.4,0.78224]
[1743886007254,13.77401125,1790.5,1790.4,0.78224]
[1743886007554,0.91222,1790.5,1790.4,6.70024]
[1743886007854,8.09e-06,1790.6,1790.5,0.7822]
[1743886008056,8.09e-06,1790.6,1790.5,3.99]
[1743886008349,8.09e-06,1790.6,1790.5,6.49]
[1743886008853,8.09e-06,1790.6,1790.5,3.99]
[1743886009449,8.09e-06,1790.6,1790.5,14.1594]
[1743886009756,8.09e-06,1790.6,1790.5,21.1964]
[1743886016165,8.09e-06,1790.6,1790.5,18.6964]
[1743886017062,8.09e-06,1790.6,1790.5,9.908]
[1743886017263,13.63991934,1790.6,1790.5,3.99]
[1743886017463,14.42206934,1790.6,1790.1,7.8739]
[1743886017654,13.93551125,1790.5,1790.1,7.8739]
[1743886017860,0.78227,1790.4,1790.0,0.00838809]
[1743886018059,2.7956,1790.3,1790.2,0.78233]
[1743886018259,11.13991125,1790.2,1790.1,0.78235]
[1743886018458,11.13991125,1790.2,1790.1,0.76171158]
[1743886018966,13.63991125,1790.2,1790.1,0.76171158]
[1743886019166,13.63991125,1790.2,1790.1,0.78237]
[1743886019864,11.13991125,1790.2,1790.1,0.78237]
[1743886020063,13.63991125,1790.2,1790.0,0.79077809]
[1743886020368,11.13991125,1790.1,1790.0,0.79077809]
[1743886020564,11.13991125,1790.5,1790.4,0.78224]
[1743886020866,7.59916809,1790.6,1790.5,0.02063842]
[1743886021068,17.95691934,1790.6,1790.0,0.00838809]
[1743886021266,11.92211125,1790.5,1790.2,0.78229]
[1743886021466,14.78431125,1790.5,1790.0,0.00838809]
[1743886021666,11.13991125,1790.4,1790.2,0.78231]
[1743886021865,2.8622,1790.3,1790.2,0.78231]
[1743886022063,14.00211125,1790.3,1790.2,0.78231]
[1743886022464,0.78237,1790.1,1790.0,0.00838809]
[1743886022663,0.78246,1789.9,1789.6,0.78255]
[1743886022858,0.78251,1789.8,1789.5,0.78263]
[1743886023172,0.02063842,1789.5,1789.4,0.78268]
[1743886023669,2.8622,1789.7,1789.6,0.76195158]
[1743886024271,14.00211125,1789.7,1789.6,0.76195158]
[1743886025963,16.50211125,1789.7,1789.3,9.13418809]
[1743886026164,11.13991125,1789.6,1789.5,0.78261]
[1743886026367,14.05151125,1789.6,1789.5,0.78261]
[1743886026565,14.05151125,1789.6,1789.5,3.99041]
[1743886027572,1.50249,1789.6,1789.5,3.99041]
[1743886027873,0.08303,1789.6,1789.5,3.99041]
[1743886028272,8.09e-06,1789.8,1789.7,0.78255]
[1743886028569,8.09e-06,1789.8,1789.7,9.90835]
[1743886028969,8.09e-06,1789.8,1789.7,12.40835]
[1743886029778,8.09e-06,1789.8,1789.7,12.96755]
[1743886030073,8.09e-06,1789.8,1789.7,12.40835]
[1743886030573,8.09e-06,1789.8,1789.7,9.90835]
[1743886031283,11.13991934,1789.8,1789.7,9.90835]
[1743886031482,11.13991934,1789.8,1789.7,3.99035]
[1743886032069,11.13991934,1789.8,1789.7,0.78255]
[1743886035082,8.09e-06,1789.8,1789.7,3.99035]
[1743886035277,8.09e-06,1789.8,1789.7,10.46235]
[1743886035877,11.13991934,1789.8,1789.7,10.46235]
[1743886036072,8.09e-06,1789.8,1789.7,10.46235]
[1743886036281,8.09e-06,1789.8,1789.7,16.38035]
[1743886036679,8.09e-06,1789.8,1789.7,18.88035]
[1743886037489,9.2371,1790.7,1789.7,18.88035]
[1743886037490,2.8918,1790.4,1790.3,0.78228]
[1743886037679,2.87116158,1790.4,1790.3,0.78228]
[1743886038180,14.01107283,1790.4,1790.3,0.78228]
[1743886038383,16.51107283,1790.4,1790.3,0.78228]
[1743886038978,16.51107283,1790.4,1790.2,0.00838809]
[1743886039185,11.13991125,1790.3,1790.2,0.79071809]
[1743886040383,13.63991125,1790.3,1790.2,0.00838809]
[1743886040587,17.62999125,1790.3,1790.1,0.78236]
[1743886040787,13.97971125,1790.2,1790.1,0.76172158]
[1743886041292,17.26205125,1790.2,1790.0,0.78241]
[1743886041588,11.13991125,1790.1,1790.0,0.78241]
[1743886041893,14.00891125,1790.1,1790.0,0.78242]
[1743886042689,14.00891125,1790.1,1789.9,0.79080809]
[1743886042895,11.92233125,1790.0,1789.9,0.00838809]
[1743886043081,0.78246,1789.9,1789.8,5.918]
[1743886043285,17.99917125,1789.9,1789.6,0.78258]
[1743886043581,11.13991125,1789.8,1789.6,0.78258]
[1743886043777,14.00891125,1789.7,1789.6,0.78258]
[1743886043989,2.869,1789.7,1789.3,9.1258]
[1743886044187,11.13991125,1789.6,1789.5,0.79098809]
[1743886044383,11.13991125,1789.6,1789.5,0.00838809]
[1743886044589,13.63991125,1789.6,1789.5,0.00838809]
[1743886044783,16.71531125,1789.6,1789.5,0.00838809]
[1743886044984,16.71531125,1789.6,1789.5,0.79101809]
[1743886045793,16.71531125,1789.6,1789.5,0.00838809]
[1743886045992,16.71531125,1789.6,1789.5,0.79101809]
[1743886046492,14.21531125,1789.6,1789.5,0.00838809]
[1743886046693,14.21531125,1789.6,1789.5,0.79101809]
[1743886048189,3.2078,1789.9,1789.8,0.7825]
[1743886048396,0.78239,1790.1,1789.5,3.99881809]
[1743886048692,2.8406,1789.8,1789.7,0.78255]
[1743886049195,0.78237,1790.1,1789.7,3.2078]
[1743886049394,2.8406,1790.0,1789.9,0.78243]
[1743886049585,13.98051125,1790.0,1789.9,0.78243]
[1743886050395,13.98051125,1790.0,1789.7,3.2078]
[1743886050595,2.8406,1790.0,1789.9,0.78246]
[1743886051199,13.98051125,1790.0,1789.9,0.78246]
[1743886051494,3.2078,1790.3,1789.7,3.2078]
[1743886051695,14.15391125,1790.2,1790.1,0.78237]
[1743886052397,14.93625125,1790.2,1790.0,0.78239]
[1743886052597,3.014,1790.2,1790.1,0.78237]
[1743886052896,3.014,1790.2,1790.1,3.99017]
[1743886053092,14.15391125,1790.2,1790.1,3.99017]
[1743886053292,14.15391125,1790.2,1790.1,0.78237]
[1743886054892,14.15391125,1790.2,1790.1,3.99017]
[1743886055095,14.15391125,1790.2,1790.1,0.78237]
[1743886056293,14.15391125,1790.2,1789.6,9.1258]
[1743886056495,11.13991125,1790.1,1790.0,0.78241]
[1743886056694,14.08601125,1790.1,1790.0,0.78241]
[1743886057093,14.86838125,1790.1,1789.6,11.08225]
[1743886057292,11.13991125,1790.0,1789.9,0.78246]
[1743886057501,14.08601125,1790.0,1789.9,0.78246]
[1743886057797,0.78255,1789.8,1789.5,0.00838809]
[1743886057997,3.72868,1789.7,1789.5,0.79100809]
[1743886058389,3.72868,1789.7,1789.5,0.79101809]
[1743886058390,11.13991125,1789.6,1789.5,0.79101809]
[1743886058589,14.08601125,1789.6,1789.5,0.79101809]
[1743886058794,14.86860125,1789.6,1789.5,0.00838809]
[1743886058995,0.78268,1789.4,1789.1,3.99058]
[1743886059193,2.9461,1789.3,1789.1,3.2078]
[1743886059394,6.1539,1789.3,1788.9,0.78287]
[1743886059591,11.92269125,1789.2,1788.9,0.78287]
[1743886059791,11.92269125,1789.2,1788.9,0.78288]
[1743886059792,2.8943,1789.1,1788.9,0.78288]
[1743886060098,17.24201125,1789.1,1788.9,0.78288]
[1743886060295,11.13991125,1789.0,1788.9,0.78288]
[1743886060491,14.03421125,1789.0,1788.8,0.7829]
[1743886060798,11.13991125,1788.9,1788.5,2.8974]
[1743886060994,2.8943,1788.8,1788.4,8.50724145]
[1743886061196,14.03421125,1788.8,1788.4,8.50724145]
[1743886061401,11.13991125,1788.7,1788.5,0.78305]
[1743886061590,2.8943,1788.6,1788.5,0.78305]
[1743886061789,14.03421125,1788.6,1788.4,9.29032145]
[1743886061991,11.13991125,1788.5,1788.4,0.78308]
[1743886062196,14.03421125,1788.5,1788.4,0.78308]
[1743886062396,17.24201125,1788.5,1788.3,0.78314]
[1743886062700,11.13991125,1788.4,1787.9,9.1258]
[1743886062899,2.9662,1788.3,1788.2,0.78316]
[1743886063099,14.10611125,1788.3,1787.9,8.7207]
[1743886063293,11.13991125,1788.2,1788.1,0.78323]
[1743886065201,0.00838809,1788.3,1788.2,0.7832]
[1743886065400,9.59123125,1788.3,1788.2,6.7937]
[1743886065799,9.59123125,1788.3,1788.2,0.7832]
[1743886067899,0.00838809,1788.3,1788.2,6.491]
[1743886068204,8.09e-06,1788.3,1788.2,6.491]
[1743886068603,8.09e-06,1788.3,1788.2,6.9178]
[1743886068604,9.58285125,1788.3,1788.2,6.9178]
[1743886068898,8.9842,1788.9,1788.3,1.95784]
[1743886069201,8.9842,1788.9,1788.6,0.783]
[1743886069202,8.43199125,1788.8,1788.6,0.783]
[1743886069396,8.43199125,1788.8,1788.7,0.78298]
[1743886069598,5.953,1788.9,1788.8,0.78294]
[1743886069797,6.2695,1789.0,1788.8,0.78294]
[1743886069999,8.43199125,1788.9,1788.8,0.78294]
[1743886070200,8.43199125,1788.9,1788.8,3.99074]
[1743886071208,0.00838809,1789.0,1788.9,0.7829]
[1743886071698,0.7829,1788.9,1788.7,0.79135809]
[1743886071903,3.238,1788.8,1788.7,0.79134809]
[1743886072102,11.66999125,1788.8,1788.7,0.79134809]
[1743886072299,11.66999125,1788.8,1788.7,0.00838809]
[1743886072503,1.95747,1788.7,1788.1,0.78323]
[1743886072698,0.78318,1788.3,1788.1,0.78323]
[1743886072898,3.238,1788.2,1787.8,3.3918]
[1743886073098,3.238,1788.2,1788.1,0.78325]
[1743886073502,11.66999125,1788.2,1787.8,3.3918]
[1743886073808,8.43199125,1788.1,1788.0,0.78329]
[1743886074002,11.66999125,1788.1,1788.0,0.78329]
[1743886074705,8.43199125,1788.1,1788.0,0.78329]
[1743886076604,11.68699125,1788.1,1788.0,0.78329]
[1743886079807,1.95834,1787.9,1787.0,3.2078]
[1743886080011,12.98961,1787.8,1787.1,1.95922]
[1743886080212,3.2078,1787.5,1787.1,3.4246]
[1743886080405,3.2444,1787.4,1787.3,0.7836]
[1743886080707,11.67639125,1787.4,1787.3,0.7836]
[1743886081006,11.67639125,1787.4,1787.2,0.78361]
[1743886081203,8.43199125,1787.3,1787.1,0.78365]
[1743886081400,3.249,1787.2,1787.1,0.78365]
[1743886081708,11.68099125,1787.2,1787.1,0.78365]
[1743886082206,0.79188809,1787.6,1787.1,0.78365]
[1743886082207,0.00838809,1787.6,1787.5,0.78351]
[1743886082507,8.09e-06,1787.6,1787.5,9.90931]
[1743886082713,8.09e-06,1787.6,1787.5,12.40931]
[1743886082913,8.09e-06,1787.6,1787.5,15.77531]
[1743886084310,8.09e-06,1787.6,1787.5,13.27531]
[1743886085918,8.43199934,1787.6,1787.5,13.27531]
[1743886086219,8.09e-06,1787.6,1787.5,13.27531]
[1743886087108,8.09e-06,1787.6,1787.5,15.77531]
[1743886090108,8.09e-06,1787.6,1787.5,21.39631]
[1743886090816,8.09e-06,1787.6,1787.5,21.38731]
[1743886094522,8.09e-06,1787.6,1787.5,18.82331]
[1743886096218,3.4517,1788.1,1788.0,0.78329]
[1743886096418,11.88369125,1788.1,1788.0,3.99109]
[1743886098417,0.00838809,1788.2,1788.1,0.78325]
[1743886098718,0.00838809,1788.2,1788.1,4.10925]
[1743886098921,8.44037934,1788.2,1788.1,4.10925]
[1743886099220,3.0632,1788.7,1788.6,0.78303]
[1743886099417,6.83265934,1788.6,1788.5,0.78305]
[1743886099821,9.33265934,1788.6,1788.5,0.78305]
[1743886100117,12.97389663,1789.2,1788.6,1.95758]
[1743886100414,0.78286,1789.0,1788.8,0.78292]
[1743886100620,2.5,1789.0,1788.8,0.78292]
[1743886100923,2.5,1789.0,1788.8,0.78291]
[1743886101420,2.5,1789.0,1788.9,0.7829]
[1743886101716,7.43397,1789.0,1788.5,9.0467]
[1743886101921,6.6511,1789.0,1788.8,0.7829]
[1743886102122,9.1511,1789.0,1788.9,0.7829]
[1743886102323,6.6511,1789.0,1788.9,0.7829]
[1743886102518,9.1511,1789.0,1788.5,5.918]
[1743886102720,0.78292,1788.9,1788.7,0.78298]
[1743886103017,3.45,1788.8,1788.7,0.78298]
[1743886103413,6.73296,1788.8,1788.6,0.78301]
[1743886103624,4.23296,1788.8,1788.6,0.78301]
[1743886103818,6.73296,1788.8,1788.6,0.78301]
[1743886105229,4.23296,1788.8,1788.6,0.78301]
[1743886105421,4.23295,1788.8,1788.4,3.21618809]
[1743886105715,4.23295,1788.8,1788.6,0.78301]
[1743886105918,5.49384934,1788.7,1788.5,0.78304]
[1743886106115,3.2442,1788.6,1788.5,0.78304]
[1743886106315,0.78307,1788.5,1788.4,0.00838809]
[1743886106628,2.28604934,1788.5,1788.0,0.78326]
[1743886106823,0.7833,1788.0,1787.8,0.78335]
[1743886107126,6.452,1787.9,1787.7,0.7834]
[1743886107729,2.28604934,1787.8,1787.7,0.7834]
[1743886107924,5.53024934,1787.8,1787.7,0.7834]
[1743886112029,1.02286934,1787.8,1787.7,3.9912]
[1743886112729,1.02286934,1787.8,1787.7,0.7834]
[1743886112933,1.02286934,1787.8,1787.7,3.9912]
[1743886113127,3.30118809,1788.0,1787.9,0.78333]
[1743886114334,8.09e-06,1788.0,1787.9,0.78333]
[1743886114527,8.09e-06,1788.0,1787.9,6.49113]
[1743886114924,11.76934472,1788.3,1788.2,0.7832]
[1743886115128,8.89187472,1788.3,1788.2,11.769]
[1743886115433,8.89187472,1788.3,1788.2,9.269]
[1743886115630,6.38620472,1788.3,1788.2,12.6225]
[1743886115830,5.19570472,1788.3,1788.2,12.6225]
[1743886116027,3.1818,1788.6,1788.5,0.78307]
[1743886117144,0.78309,1788.5,1788.3,0.78313]
[1743886117343,4.04562,1788.4,1788.2,0.78318]
[1743886117842,3.2625,1788.4,1788.2,0.78318]
[1743886118041,6.54563,1788.4,1788.2,0.78318]
[1743886118239,4.04563,1788.4,1788.0,3.2078]
[1743886118446,0.78316,1788.3,1788.1,0.78322]
[1743886118743,3.2625,1788.2,1788.1,0.78322]
[1743886120442,2.925,1788.5,1788.4,0.78312]
[1743886120840,5.425,1788.5,1787.8,5.16618]
[1743886121044,3.2078,1788.2,1788.1,0.78323]
[1743886121648,3.1613,1788.3,1787.8,8.33958]
[1743886121846,3.1613,1788.1,1788.0,0.78329]
[1743886123844,3.94455,1788.1,1787.9,0.7833]
[1743886124251,0.78329,1788.0,1787.8,3.99115]
[1743886124452,3.4793,1787.9,1787.8,3.99115]
[1743886125753,3.2078,1788.2,1788.1,0.78325]
[1743886125956,3.99104,1788.2,1788.0,0.78327]
[1743886126751,2.9228,1788.3,1788.2,0.7832]
[1743886127353,23.57530455,1788.3,1788.2,0.7832]
[1743886128147,20.65250455,1788.3,1788.2,0.7832]
[1743886129555,20.54060455,1788.3,1788.2,0.7832]
[1743886130255,17.33280455,1788.3,1788.2,0.7832]
[1743886130957,18.56941184,1788.3,1788.2,0.7832]
[1743886133859,12.07404184,1788.3,1788.2,6.491]
[1743886134359,13.16167962,1788.4,1788.3,0.78316]
[1743886134555,13.16167962,1788.4,1788.3,4.23786]
[1743886135565,13.16167962,1788.4,1788.3,0.78316]
[1743886136558,20.77229962,1788.4,1788.3,0.78316]
[1743886136865,19.98917962,1788.4,1788.3,0.78316]
[1743886137460,6.8275,1788.4,1788.3,0.78316]
[1743886137856,7.61062,1788.4,1788.3,0.78316]
[1743886138057,6.8275,1788.4,1788.3,0.78316]
[1743886140355,3.6197,1788.4,1788.3,0.78316]
[1743886141062,3.2078,1788.6,1788.5,0.78307]
[1743886141263,36.12608162,1788.7,1788.6,0.78303]
[1743886141665,39.72388162,1788.7,1788.6,0.78303]
[1743886141859,44.18139162,1788.7,1788.1,0.78321]
[1743886142069,0.78327,1788.1,1787.9,0.78333]
[1743886142259,3.5978,1788.0,1787.9,0.78333]
[1743886144360,0.78338,1787.8,1787.6,0.00838809]
[1743886144561,3.5978,1787.7,1787.6,0.00838809]
[1743886144762,4.38122,1787.7,1787.6,0.00838809]
[1743886144961,6.0978,1787.7,1787.6,0.00838809]
[1743886145267,3.5978,1787.7,1787.6,0.00838809]
[1743886145463,4.38122,1787.7,1787.6,0.00838809]
[1743886145663,3.5978,1787.7,1787.6,0.79185809]
[1743886145969,0.78351,1787.5,1787.2,0.78362]